Cogmind - Beta 13 @@@ ROGUE MODE // 2024.04.10 @ 19:14:02 Player: JackieG Result: Destroyed by S-27 Virus with Autogun Performance ------------- Evolutions (4) 2000 Regions Visited (10) 2000 Robots Destroyed (116) 580 Value Destroyed (3398) 3398 Prototype IDs (1) 20 Alien Tech Used (0) 0 Bonus (834) 834 TOTAL SCORE: 8832 Bonus ------- High Alert Combat Kills 34 Entered DSFs 500 Aligned with FarCom 300 Cogmind --------- Core Integrity 0/850 Matter 191/300 Energy 94/100 System Corruption 12% Temperature Cool (0) Movement Core (50) Location -6/Factory Parts ------- > --- POWER (2) -------- (None) > --- PROPULSION (4) --- (None) > --- UTILITY (6) ------ (None) > --- WEAPON (3) ------- Minigun > --- INVENTORY (5) ---- Light Angular Momentum Engine Fusion Compressor Advanced Weight Redist. System Improved Light Armor Plating Assault Cannon Peak State ------------ > --- POWER ------------ Nuclear Core Backup Power VII > --- PROPULSION ------- Light Treads Light Treads Armored Treads Medium Treads > --- UTILITY ---------- Improved Heat Sink Improved Heat Sink Large Storage Unit Hardened Medium Armor Plating Hardened Medium Armor Plating Hacking Suite > --- WEAPON ----------- EM Pulse Cannon Proton Cannon Heavy Flak Cannon > --- INVENTORY -------- Light Angular Momentum Engine Fusion Compressor Improved Heat Sink Advanced Heat Sink Large Storage Unit Advanced Weight Redist. System Particle Charger Improved Light Armor Plating Plasma Cannon Minigun Gauss Rifle Assault Cannon Heavy Flak Cannon Heavy Flak Cannon Heavy Missile Launcher [Rating: 53] Favorites ----------- Power Improved Ion Engine Engine Improved Ion Engine Power Core Nuclear Core Propulsion Light Treads Treads Light Treads Utility Large Storage Unit Device Improved Heat Sink Storage Large Storage Unit Processor Advanced Targeting Computer Hackware Hacking Suite Protection Hardened Medium Armor Plating Weapon Plasma Cannon Energy Gun Medium Laser Energy Cannon Plasma Cannon Ballistic Gun Minigun Ballistic Cannon Heavy Flak Cannon Launcher Rocket Launcher Build | -11 -10 -10 -9 -9 -9 -8 -8 -7 -7 -6 ------- Run | Yrd Mat Min Mat Min Exi Min Mat Fac DSF Fac Slots Evolved 8 | . . . 2 . . . 2 2 . 2 Power 1 | . . . . . . . . . . 1 Propulsion 2 | . . . . . . . 2 . . . Utility 4 | . . . 2 . . . . 1 . 1 Weapon 1 | . . . . . . . . 1 . . Parts Attached 100 | 6 7 5 7 13 1 . 29 3 13 16 Power 8 | 1 1 1 1 . . . 2 . 1 1 Engine 6 | 1 1 1 1 . . . 2 . . . Core 2 | . . . . . . . . . 1 1 Reactor . | . . . . . . . . . . . Propulsion 32 | 2 3 3 1 2 . . 13 . 3 5 Treads 32 | 2 3 3 1 2 . . 13 . 3 5 Leg . | . . . . . . . . . . . Wheel . | . . . . . . . . . . . Hover . | . . . . . . . . . . . Flight . | . . . . . . . . . . . Utility 27 | 1 2 . 5 1 . . 9 1 6 2 Device 8 | . 1 . 2 . . . 2 . 3 . Storage 3 | 1 1 . . . . . . . . 1 Processor 1 | . . . . . . . 1 . . . Hackware 2 | . . . . . . . 2 . . . Protection 13 | . . . 3 1 . . 4 1 3 1 Artifact . | . . . . . . . . . . . Weapon 33 | 2 1 1 . 10 1 . 5 2 3 8 Energy Gun 2 | 1 . 1 . . . . . . . . Energy Cannon 14 | . 1 . . 3 1 . 3 2 1 3 Ballistic Gun 6 | 1 . . . 3 . . 1 . . 1 Ballistic Cannon 6 | . . . . 1 . . 1 . 1 3 Launcher 5 | . . . . 3 . . . . 1 1 Special Weapon . | . . . . . . . . . . . Impact Weapon . | . . . . . . . . . . . Slashing Weapon . | . . . . . . . . . . . Piercing Weapon . | . . . . . . . . . . . Special Melee Weapon . | . . . . . . . . . . . Unidentified Prototypes 1 | . . . . . 1 . . . . . Corrupted Parts 3 | . . . . . . . . . . 3 System Corruption 12 | . . . . . . . . . . 12 Parts Lost 43 | . . . 1 6 . . 9 . 7 20 Power 3 | . . . . . . . 1 . . 2 Propulsion 12 | . . . . 2 . . 2 . 1 7 Utility 17 | . . . 1 2 . . 4 . 4 6 Weapon 11 | . . . . 2 . . 2 . 2 5 Highest Loss Streak 17 | . . . 1 3 . . 5 . 7 17 To Critical Strikes 1 | . . . . . . . . . . 1 Average Slot Usage (%) 94 | . 91 100 99 88 82 77 96 100 94 96 Engine 8 | . 14 14 11 11 11 11 9 7 . . Core 3 | . . . . . . . . . 6 12 Treads 27 | . 27 28 22 21 22 22 35 30 28 25 Device 11 | . 5 14 15 11 11 11 9 7 6 12 Storage 9 | . 14 14 11 11 11 11 9 7 7 6 Hackware 2 | . . . . . . . 2 7 7 5 Protection 9 | . . . 16 10 11 11 12 7 7 11 Energy Gun 3 | . 14 14 11 . . . . . . . Energy Cannon 10 | . 8 14 11 2 6 11 11 23 18 12 Ballistic Gun 2 | . 5 . . 10 5 . . . . . Ballistic Cannon 3 | . . . . 3 5 . 4 . . 6 Launcher 1 | . . . . 5 . . . . 1 . Naked Turns . | . . . . . . . . . . . Heaviest Build 71 | 13 35 33 38 37 48 48 58 60 68 71 Greatest Support 88 | 40 40 42 42 42 40 40 84 82 82 88 Greatest Overweight (x) 13 | . . . . . 1 1 . . 1 13 Average Overweight (x) . | . . . . . . 1 . . . . Largest Inventory Capacity 15 | 8 15 15 15 15 15 15 15 15 15 15 Average Capacity 14 | 7 11 15 15 15 15 15 15 15 15 14 Most Carried 15 | 4 11 15 15 15 15 15 15 14 15 15 Average Carried 13 | 2 7 13 14 12 14 15 14 13 13 13 Final Capacity 15 | 8 15 15 15 15 15 15 15 15 15 5 Final Carried 15 | 4 10 15 15 14 15 15 15 13 11 5 Class Distribution -------------------- 42% | Mutant 29% | Scavenger-Mutant 20% | Scavenger-Tank 6% | Scavenger-Skirmisher Dominant Class ---------------- Mutant | -10/Materials Scavenger-Mutant | -10/Mines Mutant | -9/Materials Mutant | -9/Mines Mutant | -9/Exiles Mutant | -8/Mines Scavenger-Mutant | -8/Materials Scavenger-Skirmisher | -7/Factory Scavenger-Skirmisher | -7/DSF Scavenger-Tank | -6/Factory Resources | -11 -10 -10 -9 -9 -9 -8 -8 -7 -7 -6 ----------- Run | Yrd Mat Min Mat Min Exi Min Mat Fac DSF Fac Matter Collected 1890 | 260 94 40 80 289 . . 422 . 195 510 Remotely . | . . . . . . . . . . . Salvage Created 3886 | . 532 116 402 243 . 21 1050 . 522 1000 Parts 220 | . 31 10 16 18 . 5 68 . 27 45 Haulers Intercepted 9 | . 2 . 1 . . . 4 . . 2 Recyclers Shooed 5 | . . . 1 . . . 2 . . 2 Parts Field Recycled . | . . . . . . . . . . . Retrieved Matter . | . . . . . . . . . . . Parts Self-Destructed . | . . . . . . . . . . . Prevented . | . . . . . . . . . . . Kills | -11 -10 -10 -9 -9 -9 -8 -8 -7 -7 -6 ------- Run | Yrd Mat Min Mat Min Exi Min Mat Fac DSF Fac Combat Hostiles Destroyed 97 | . 10 2 7 28 . 4 19 . 13 14 Guns 16 | . 8 . 3 2 . . 2 . . 1 Cannons 39 | . 2 2 4 4 . 1 6 . 10 10 AOE 39 | . . . . 22 . 3 9 . 2 3 Classes Destroyed 18 | . 5 1 1 3 . 1 4 . 2 1 Worker 2 | . . . . . . . 1 . . 1 Builder 10 | . . . . . . . 6 . . 4 Tunneler 2 | . . . . . . 2 . . . . Hauler 9 | . 2 . 1 . . . 4 . . 2 Recycler 3 | . . . . . . . 2 . . 1 Operator 3 | . 1 . 1 . . . 1 . . . Watcher 5 | . 2 . . . . . 2 . . 1 Swarmer 27 | . 3 . . 8 . 4 7 . 3 2 Grunt 28 | . 7 . 3 3 . . 5 . 3 7 Brawler 1 | . . . . 1 . . . . . . Duelist 2 | . . . 1 . . . . . . 1 Sentry 12 | . . 2 3 . . . 6 . . 1 Demolisher 1 | . . . . 1 . . . . . . Specialist 6 | . . . . . . . 1 . 5 . Hunter 1 | . . . . . . . . . . 1 Programmer 3 | . . . . . . . . . 1 2 Heavy 1 | . . . . . . . . . 1 . Assembled 15 | . . . . 15 . . . . . . Best Kill Streak 15 | . 4 2 2 15 . 6 8 . 6 14 Combat Bots Only 15 | . 3 2 2 15 . 4 5 . 6 10 Max Kills in Single Turn 3 | . 1 1 1 3 . 3 3 . 2 3 Gunslinging . | . . . . . . . . . . . Exploded 3 | . . . . 3 . 2 2 . 1 2 Melee . | . . . . . . . . . . . Uniques/NPCs Destroyed . | . . . . . . . . . . . Combat | -11 -10 -10 -9 -9 -9 -8 -8 -7 -7 -6 -------- Run | Yrd Mat Min Mat Min Exi Min Mat Fac DSF Fac Hostile Shots Fired 666 | . 37 16 36 57 . 11 75 . 144 290 Missed 193 | . 6 2 11 11 . 7 14 . 48 94 Damage Taken 8233 | . 332 245 370 1013 . 28 1251 . 1971 3023 Core 1954 | . 17 13 67 222 . . 239 . 535 861 Absorbed by Shields . | . . . . . . . . . . . Redirected to Shielding 286 | . . . 99 71 . 5 111 . . . Ignored by Resistances 24 | . . . . . . . 24 . . . Regen/Repaired (Parts) 197 | . 10 . . . . . 59 . . 128 Core Remaining (%) 48 | 100 . 88 . . . 27 6 . 23 . Volleys Fired 249 | . 36 6 23 24 . 3 80 . 34 43 Largest 3 | . 2 2 2 2 . 1 2 . 3 3 Hottest 240 | . 110 110 110 110 . 100 160 . 240 196 Shots Fired 503 | . 72 12 45 45 . 3 146 . 71 109 Gun 123 | . 60 6 22 19 . . 12 . . 4 Cannon 367 | . 12 6 23 16 . 3 134 . 69 104 Launcher 13 | . . . . 10 . . . . 2 1 Special . | . . . . . . . . . . . Kinetic 132 | . 24 . . 13 . . 45 . 1 49 Thermal 311 | . 48 12 45 17 . 3 101 . 68 17 Explosive 13 | . . . . 10 . . . . 2 1 Electromagnetic 47 | . . . . 5 . . . . . 42 Robot Hit Streak 16 | . 15 9 14 5 . 1 16 . 9 12 Robot Miss Streak 4 | . 3 1 2 3 . 2 3 . 2 4 Penetration Max . | . . . . . . . . . . . Secondary Targets . | . . . . . . . . . . . Shots Hit Robots 329 | . 50 11 34 23 . 1 77 . 49 84 Core Hits 215 | . 28 4 14 40 . 4 39 . 17 69 Critical Kills 3 | . . . . . . . 2 . 1 . Critical Parts Destroyed . | . . . . . . . . . . . Critical Strikes 15 | . 6 1 1 . . . 5 . 1 1 Burn 8 | . 6 1 1 . . . . . . . Meltdown 3 | . . . . . . . 2 . 1 . Blast 3 | . . . . . . . 3 . . . Corrupt 1 | . . . . . . . . . . 1 Melee Attacks . | . . . . . . . . . . . Impact . | . . . . . . . . . . . Slashing . | . . . . . . . . . . . Piercing . | . . . . . . . . . . . Sneak Attacks . | . . . . . . . . . . . Combat Hostiles . | . . . . . . . . . . . Follow-up Attacks . | . . . . . . . . . . . Damage Inflicted 10983 | . 587 170 531 1701 . 628 3224 . 1557 2585 Guns 1044 | . 447 64 213 144 . . 121 . . 55 Cannons 6140 | . 140 106 318 212 . 121 2004 . 1190 2049 Explosions 3798 | . . . . 1345 . 507 1099 . 367 480 Melee . | . . . . . . . . . . . Ramming 1 | . . . . . . . . . . 1 Kinetic 1649 | . 132 . . 94 . . 518 . 7 898 Thermal 6507 | . 455 170 531 301 . 628 2706 . 1183 533 Explosive 1935 | . . . . 1217 . . . . 367 351 Electromagnetic 891 | . . . . 89 . . . . . 802 Impact . | . . . . . . . . . . . Slashing . | . . . . . . . . . . . Piercing . | . . . . . . . . . . . Highest Corruption 12 | . . . . 1 1 1 1 . . 12 Average Corruption 2 | . . . . 1 1 1 1 . . 5 Corruption Purged . | . . . . . . . . . . . Corruption Blocked . | . . . . . . . . . . . Effects 50 | . . . . 7 5 . . . . 38 Message Errors 10 | . . . . 2 3 . . . . 5 Matter Fused 18 | . . . . 3 2 . . . . 13 Heat Flow Errors 2 | . . . . . . . . . . 2 Energy Discharges 6 | . . . . 1 . . . . . 5 Parts Rejected 1 | . . . . . . . . . . 1 Data Loss (minor) 4 | . . . . . . . . . . 4 Data Loss (major) 5 | . . . . 1 . . . . . 4 Misfires 2 | . . . . . . . . . . 2 Weapon Failures 2 | . . . . . . . . . . 2 Overload Shots . | . . . . . . . . . . . Overflow Damage 653 | . 5 . . 71 . 140 322 . 18 97 Projectiles 277 | . 5 . . . . . 240 . 5 27 Explosions 376 | . . . . 71 . 140 82 . 13 70 Melee . | . . . . . . . . . . . Knockbacks 32 | . . . . . . . 8 . . 24 Impact . | . . . . . . . . . . . Kinetic 29 | . . . . . . . 5 . . 24 Secondary 3 | . . . . . . . 3 . . . Self-Inflicted Damage 565 | . . . . 286 . . 107 . . 172 Shots 11 | . . . . 8 . . 1 . . 2 Rammed 1 | . . . . . . . . . . 1 Targets Rammed 1 | . . . . . . . . . . 1 Kicked . | . . . . . . . . . . . Crushed . | . . . . . . . . . . . Highest Temperature 1064 | . 218 153 184 184 . 36 196 . 1064 276 Average Temperature 110 | . 79 82 60 58 . 19 62 . 257 105 Received Heat Transfer 1193 | . 129 45 129 98 . . 354 . 117 321 Effects 38 | . . . . . . . . . 34 4 Shutdowns 6 | . . . . . . . . . 6 . Energy Bleed 2 | . . . . . . . . . 1 1 Interference 9 | . . . . . . . . . 6 3 Matter Decay 3 | . . . . . . . . . 3 . Short Circuit 3 | . . . . . . . . . 3 . Damage (minor) 2 | . . . . . . . . . 2 . Damage (major) 9 | . . . . . . . . . 9 . Damage (core) 4 | . . . . . . . . . 4 . Siege Activations . | . . . . . . . . . . . Robots Corrupted . | . . . . . . . . . . . Combat Hostiles . | . . . . . . . . . . . Parts Fried 2 | . . . . . . . . . . 2 Impact Corruptions . | . . . . . . . . . . . Robots Melted 3 | . . . . . . . 2 . 1 . Combat Hostiles 3 | . . . . . . . 2 . 1 . Parts Melted 24 | . 2 1 6 . . . 9 . 5 1 Heat Transferred 11420 | . 1665 481 1369 557 . 560 3738 . 2300 750 Parts Sabotaged . | . . . . . . . . . . . Parts Stolen . | . . . . . . . . . . . Parts Stripped . | . . . . . . . . . . . Power Chain Reactions 1 | . . . . . . . . . . 1 Alert | -11 -10 -10 -9 -9 -9 -8 -8 -7 -7 -6 ------- Run | Yrd Mat Min Mat Min Exi Min Mat Fac DSF Fac Peak Influence 495 | . 341 112 285 237 . 129 495 130 394 251 Initial 206 | . . 57 . 33 . . 50 130 91 206 Average 136 | . 170 33 110 92 . 119 303 130 216 71 Maximum Alert Level 2 | . 1 . 1 1 . . 2 . 1 1 Low Security (%) 69 | 100 69 100 77 87 . 100 14 100 66 81 Level 1 27 | . 30 . 22 12 . . 71 . 33 18 Level 2 3 | . . . . . . . 14 . . . Level 3 . | . . . . . . . . . . . Level 4 . | . . . . . . . . . . . Level 5 . | . . . . . . . . . . . High Security . | . . . . . . . . . . . Max Security . | . . . . . . . . . . . Sterilizations 1 | . . . . . . . . . 1 . Squads Dispatched 19 | . 3 . 1 1 . . 3 1 3 7 Investigation 7 | . 2 . . 1 . . . 1 . 3 Extermination 2 | . . . . . . . . . . 2 Reinforcement 10 | . 1 . 1 . . . 3 . 3 2 Assault . | . . . . . . . . . . . Garrison . | . . . . . . . . . . . Intercept . | . . . . . . . . . . . Searches Triggered . | . . . . . . . . . . . Construction Impeded 3 | . . . . . . . 1 . . 2 Haulers Reinforced . | . . . . . . . . . . . Active Scanning Responses . | . . . . . . . . . . . Cargo Convoy Interrupts . | . . . . . . . . . . . Stealth | -11 -10 -10 -9 -9 -9 -8 -8 -7 -7 -6 --------- Run | Yrd Mat Min Mat Min Exi Min Mat Fac DSF Fac Distress Signals 7 | . 1 . 1 . . . 4 . . 1 Communications Jammed . | . . . . . . . . . . . Distress Signals . | . . . . . . . . . . . Times Spotted 138 | . 16 4 12 31 . 4 29 . 16 26 Peak Tracking Total 17 | . 5 2 4 17 . 4 6 . 5 10 Tactical Retreats 7 | . 2 1 . . . . . . 3 1 Traps | -11 -10 -10 -9 -9 -9 -8 -8 -7 -7 -6 ------- Run | Yrd Mat Min Mat Min Exi Min Mat Fac DSF Fac Traps Triggered 6 | . 1 . . . . . 2 . 1 2 Indirectly . | . . . . . . . . . . . Trap Hack Attempts . | . . . . . . . . . . . Triggered . | . . . . . . . . . . . Disarmed . | . . . . . . . . . . . Reprogrammed . | . . . . . . . . . . . Reused . | . . . . . . . . . . . Traps Extracted . | . . . . . . . . . . . Installed . | . . . . . . . . . . . Triggered . | . . . . . . . . . . . Machines | -11 -10 -10 -9 -9 -9 -8 -8 -7 -7 -6 ---------- Run | Yrd Mat Min Mat Min Exi Min Mat Fac DSF Fac Machines Disabled 14 | . 1 . . 9 . . 3 . . 1 Max in Single Turn 9 | . 1 . . 9 . . 1 . . 1 Machines Repaired . | . . . . . . . . . . . Machines Dismantled . | . . . . . . . . . . . Machines Sabotaged . | . . . . . . . . . . . Overloaded Fab Kills . | . . . . . . . . . . . Hacking | -11 -10 -10 -9 -9 -9 -8 -8 -7 -7 -6 --------- Run | Yrd Mat Min Mat Min Exi Min Mat Fac DSF Fac Machines Accessed 17 | . 2 2 2 1 . . 4 2 . 4 Terminals 10 | . 1 1 1 1 . . 3 1 . 2 Fabricators 1 | . . . . . . . . 1 . . Repair Stations 4 | . 1 . . . . . 1 . . 2 Recycling Units 1 | . . . 1 . . . . . . . Scanalyzers . | . . . . . . . . . . . Garrison Access . | . . . . . . . . . . . Total Hacks 36 | . 5 3 5 4 . . 8 3 . 8 Successful 17 | . 2 1 2 2 . . 4 1 . 5 Failed 19 | . 3 2 3 2 . . 4 2 . 3 Catastrophic 4 | . . . 1 1 . . 1 1 . . Database Lockouts . | . . . . . . . . . . . Manual 12 | . 3 2 1 . 1 . 3 2 . . Terminals 18 | . 2 2 1 4 . . 6 1 . 2 Fabricators 2 | . . . . . . . . 2 . . Repair Stations 11 | . 3 . . . . . 2 . . 6 Recycling Units 4 | . . . 4 . . . . . . . Scanalyzers . | . . . . . . . . . . . Garrison Access . | . . . . . . . . . . . Terminal Hacks 8 | . . 1 . 2 . . 2 1 . 2 Record 3 | . . . . 2 . . . . . 1 Robot Analysis 1 | . . . . . . . 1 . . . Open Door 1 | . . 1 . . . . . . . . Open DSF 2 | . . . . . . . . 1 . 1 Hauler Manifests 1 | . . . . . . . 1 . . . Fabricator Hacks . | . . . . . . . . . . . Repair Station Hacks 7 | . 2 . . . . . 2 . . 3 Scan Component 3 | . 1 . . . . . 1 . . 1 Repair 3 | . 1 . . . . . 1 . . 1 Refit 1 | . . . . . . . . . . 1 Recycling Unit Hacks 1 | . . . 1 . . . . . . . Report Inventory 1 | . . . 1 . . . . . . . Scanalyzer . | . . . . . . . . . . . Garrison Access Hacks . | . . . . . . . . . . . Unauthorized Hacks 1 | . . . 1 . . . . . . . Terminals . | . . . . . . . . . . . Fabricators . | . . . . . . . . . . . Repair Stations . | . . . . . . . . . . . Recycling Units 1 | . . . 1 . . . . . . . Mask 1 | . . . 1 . . . . . . . Scanalyzers . | . . . . . . . . . . . Garrison Access . | . . . . . . . . . . . Data Cores Recovered 1 | . . . 1 . . . . . . . Used . | . . . . . . . . . . . Hacking Detections 13 | . 2 1 2 1 . . 3 2 . 2 Full Trace Events 5 | . 1 . . 1 . . . 1 . 2 Feedback Events . | . . . . . . . . . . . Feedback Blocked . | . . . . . . . . . . . Robot Schematics Acquired . | . . . . . . . . . . . Robots Built . | . . . . . . . . . . . Authchips . | . . . . . . . . . . . Time . | . . . . . . . . . . . Total Robot Build Rating . | . . . . . . . . . . . Part Schematics Acquired . | . . . . . . . . . . . Parts Built . | . . . . . . . . . . . Authchips . | . . . . . . . . . . . Time . | . . . . . . . . . . . Total Part Build Rating . | . . . . . . . . . . . Parts Repaired 3 | . 1 . . . . . 1 . . 1 Time 54 | . 26 . . . . . 16 . . 12 Parts Recycled . | . . . . . . . . . . . Recycled Matter . | . . . . . . . . . . . Retrieved Matter . | . . . . . . . . . . . Retrieved Components . | . . . . . . . . . . . Parts Scanalyzed . | . . . . . . . . . . . Part Schematics Acquired . | . . . . . . . . . . . Parts Damaged . | . . . . . . . . . . . Bothacking | -11 -10 -10 -9 -9 -9 -8 -8 -7 -7 -6 ------------ Run | Yrd Mat Min Mat Min Exi Min Mat Fac DSF Fac Used RIF Installer . | . . . . . . . . . . . Robots Hacked . | . . . . . . . . . . . Non-combat . | . . . . . . . . . . . Combat . | . . . . . . . . . . . Robot Hacks Applied . | . . . . . . . . . . . Relay Couplers Released . | . . . . . . . . . . . Fabnet Peak Effective % . | . . . . . . . . . . . Robots Rewired . | . . . . . . . . . . . Allies Hacked . | . . . . . . . . . . . Hacks Repelled . | . . . . . . . . . . . Allies | -11 -10 -10 -9 -9 -9 -8 -8 -7 -7 -6 -------- Run | Yrd Mat Min Mat Min Exi Min Mat Fac DSF Fac Total Allies . | . . . . . . . . . . . Largest Group . | . . . . . . . . . . . Highest-Rated Group . | . . . . . . . . . . . Highest-Rated Ally . | . . . . . . . . . . . Total Orders . | . . . . . . . . . . . Ally Attacks . | . . . . . . . . . . . Total Damage . | . . . . . . . . . . . Kills . | . . . . . . . . . . . Allies Corrupted . | . . . . . . . . . . . Allies Melted . | . . . . . . . . . . . Intel | -11 -10 -10 -9 -9 -9 -8 -8 -7 -7 -6 ------- Run | Yrd Mat Min Mat Min Exi Min Mat Fac DSF Fac Robot Analysis Total 1 | . . . . . . . 1 . . . Derelict Logs Recovered 3 | . . 1 . 2 . . . . . . Drone Launches . | . . . . . . . . . . . Drone Recoveries . | . . . . . . . . . . . Exploration | -11 -10 -10 -9 -9 -9 -8 -8 -7 -7 -6 ------------- Run | Yrd Mat Min Mat Min Exi Min Mat Fac DSF Fac Turns Passed 9020 | 91 620 1297 401 1491 552 80 1803 68 501 2116 Spaces Moved 3387 | 52 277 327 188 869 281 29 763 42 110 449 Core 7 | 4 . . . . . . . . . 3 Treads 3380 | 48 277 327 188 869 281 29 763 42 110 446 Legs . | . . . . . . . . . . . Wheels . | . . . . . . . . . . . Hover . | . . . . . . . . . . . Flight . | . . . . . . . . . . . Fastest Speed 50 | 50 160 152 152 152 160 240 152 156 155 50 Average Speed 163 | 151 160 159 152 159 195 240 156 156 170 166 Slowest Speed 700 | 160 160 160 152 160 240 240 160 156 245 700 Overloaded Moves . | . . . . . . . . . . . Propulsion Burnouts . | . . . . . . . . . . . Robots Hopped . | . . . . . . . . . . . Cave-ins Triggered . | . . . . . . . . . . . Exploration Rate (%) 43 | 4 54 73 21 97 60 20 61 2 78 10 Regions Visited 10 Branch Regions 4 Pre-discovered Areas . | . . . . . . . . . . . Known Exits Taken 1 | . . . . . . . . 1 . . Unknown Exits Taken 8 | 1 1 1 1 1 1 1 1 . . . Scrap Searched 3 | . . . . 3 . . . . . . Spaces Dug 14 | . . . . . . . 14 . . . Terrain Destroyed 351 | . . . . 114 . 38 166 . 20 13 Melee . | . . . . . . . . . . . Projectile 39 | . . . . . . 2 37 . . . AOE 312 | . . . . 114 . 36 129 . 20 13 Terrain Rammed . | . . . . . . . . . . . Walls Destroyed . | . . . . . . . . . . . Machines Disabled . | . . . . . . . . . . . Actions | -11 -10 -10 -9 -9 -9 -8 -8 -7 -7 -6 --------- Run | Yrd Mat Min Mat Min Exi Min Mat Fac DSF Fac Total 6389 | 61 385 1094 261 931 287 31 1203 44 362 1730 Wait 2525 | . 55 734 27 22 . . 288 . 199 1200 Move 3377 | 51 276 326 187 868 280 28 762 41 109 449 Hop . | . . . . . . . . . . . Pick Up 86 | 4 9 14 8 4 3 . 26 . 5 13 Fast Attach 19 | 6 1 . 2 . . . 5 . 3 2 Attach 35 | . 2 . 3 5 1 . 9 2 5 8 Detach 2 | . . . 1 . . . . . . 1 Swap 46 | . 4 5 2 8 . . 15 1 5 6 Drop 49 | . 2 9 8 . 3 . 18 . 2 7 Fire 249 | . 36 6 23 24 . 3 80 . 34 43 Melee . | . . . . . . . . . . . Ram . | . . . . . . . . . . . Kick . | . . . . . . . . . . . Crush 1 | . . . . . . . . . . 1 Escape Stasis . | . . . . . . . . . . . Rewire . | . . . . . . . . . . . Trap . | . . . . . . . . . . . Miscellaneous . | . . . . . . . . . . . Route ------- -11/Scrapyard -10/Materials (discovered 3 exits: *Mat x2 / *Min) -10/Mines -9/Materials (discovered 2 exits: *Min / Sto) -9/Mines (discovered 3 exits: *Mat x2 / *Exi) -9/Exiles -8/Mines -8/Materials -7/Factory -7/DSF -6/Factory (discovered 1 exit: [*Fac]) History --------- Turn | Location | Event 8 | -11/Scrapyard | Discovered new exit (range 14) 92 | -11/Scrapyard | Entered Materials 302 | -10/Materials | Build established: Mutant 474 | -10/Materials | Discovered new exit (range 16) 597 | -10/Materials | Discovered new exit (range 13) 662 | -10/Materials | Repaired Lgt. Treads 705 | -10/Materials | Discovered new exit (range 5) 712 | -10/Materials | Entered Mines 752 | -10/Mines | Learned location of 1 exit from Materials 954 | -10/Mines | Build established: Scavenger-Mutant 1205 | -10/Mines | Met a Derelict who couldn't figure out how to use a Trap Extractor 1983 | -10/Mines | Discovered new exit (range 10) 2009 | -10/Mines | Entered Materials 2009 | -9/Materials | Evolved 2 slots: Utility x2 2010 | -9/Materials | Identified exit to Storage 2383 | -9/Materials | Discovered new exit (range 14) 2410 | -9/Materials | Entered Mines 2417 | -9/Mines | Build established: Mutant 2488 | -9/Mines | Assembled infested the area 2493 | -9/Mines | Assisted by a Guerilla fighting off Assembled 2519 | -9/Mines | Core integrity fell below 50% 2543 | -9/Mines | Destroyed 15 combat bots 2552 | -9/Mines | Lost 3 parts (1n1u1w) 2554 | -9/Mines | Learned 2 Materials zone layouts 2578 | -9/Mines | Discovered new exit (range 10) 3507 | -9/Mines | Discovered new exit (range 13) 3890 | -9/Mines | Deemed a non-threat by the Exiles lab entrance 3891 | -9/Mines | Discovered new exit (range 5) 3901 | -9/Mines | Entered Exiles 3957 | -9/Exiles | Met 8R-AWN 3993 | -9/Exiles | Met EX-HEX 4066 | -9/Exiles | Met EX-BIN 4097 | -9/Exiles | Aligned with FarCom system 4098 | -9/Exiles | Given EX-Vault access code 4146 | -9/Exiles | Opened EX-Vault 4155 | -9/Exiles | Found Prototype Energy Cannon 4157 | -9/Exiles | Identified YOLO Cannon 4217 | -9/Exiles | Warned to stay clear of 0b10 Research branches 4299 | -9/Exiles | Met EX-DEC 4421 | -9/Exiles | Discovered new exit (range 10) 4453 | -9/Exiles | Left Exiles lab with YOLO Cannon 4453 | -9/Exiles | Entered Mines 4501 | -8/Mines | Discovered new exit (range 13) 4533 | -8/Mines | Entered Materials 4533 | -8/Materials | Evolved 2 slots: Propulsion x2 4580 | -8/Materials | Repaired Rocket Launcher 4831 | -8/Materials | Build established: Scavenger-Mutant 4929 | -8/Materials | Core integrity fell below 50% 4959 | -8/Materials | Lost 5 parts (2n2u1w) 5500 | -8/Materials | Build established: Mutant 5908 | -8/Materials | Core integrity fell below 20% 5944 | -8/Materials | Lost 4 parts (1p2u1w) 6111 | -8/Materials | Build established: Scavenger-Mutant 6307 | -8/Materials | Discovered new exit (range 12) 6336 | -8/Materials | Entered Factory 6336 | -7/Factory | Evolved 2 slots: Utility x1, Weapon x1 6404 | -7/Factory | Identified exit to DSF 6404 | -7/Factory | Entered DSF 6517 | -7/DSF | Additional patrols routed to DSF 6643 | -7/DSF | Build established: Scavenger-Skirmisher 6773 | -7/DSF | Sterilization system engaged 6793 | -7/DSF | Ambient heat levels rising (+10) 6808 | -7/DSF | Ambient heat levels rising (+10) 6819 | -7/DSF | Lost 7 parts (1n4u2w) 6823 | -7/DSF | Ambient heat levels rising (+10) 6838 | -7/DSF | Ambient heat levels rising (+10) 6853 | -7/DSF | Ambient heat levels rising (+10) 6868 | -7/DSF | Ambient heat levels rising (+10) 6881 | -7/DSF | Discovered new exit (range 14) 6883 | -7/DSF | Ambient heat levels rising (+10) 6898 | -7/DSF | Ambient heat levels rising (+10) 6902 | -7/DSF | Core integrity fell below 50% 6905 | -7/DSF | Entered Factory 6905 | -6/Factory | Evolved 2 slots: Power x1, Utility x1 6957 | -6/Factory | Repaired Broken Lgt. Treads 7295 | -6/Factory | Build established: Scavenger-Tank 8868 | -6/Factory | Discovered new exit (range 13) 8959 | -6/Factory | System corruption reached 10% 8977 | -6/Factory | Destroyed 10 combat bots 9003 | -6/Factory | Core integrity fell below 50% 9009 | -6/Factory | Core integrity fell below 20% 9021 | -6/Factory | Destroyed by S-27 Virus with Autogun Last Messages --------------- K-01 Serf collects debris. R-10 Processor collects VTOL Module. U-05 Engineer lays Concrete. U-05 Engineer builds a Wall. U-05 Engineer lays Concrete. K-01 Serf collects debris. U-05 Engineer builds a Wall. K-01 Serf collects debris. ALERT: Construction progress impeded, dispatching reinforcements to local area. U-05 Engineer lays Concrete. K-01 Serf collects debris. S-27 Virus destroyed. U-05 Engineer lays Concrete. K-01 Serf collects debris. System corrupted: Substantial component data lost. U-05 Engineer lays Concrete. Dropped Lrg. Storage Unit. K-01 Serf collects debris. Map ----- +----------------------------------------------------+ | ?????????????????????????????????????????????????? | | ?????????????????????????????????????????????????? | | ?????????????????????????????????????????????????? | | ?????????????????????????????????????????????????? | | ?????????????????????????????????????????????????? | | ?????????????????????????????????????????????????? | | ?????????????????????????????????????????????????? | | ?????????????????????????????????????????????????? | | ?????????????????????????????????????????????????? | | ?????????????????????????????????????????????????? | | ?????????????????????????????? ??????????????? | | ?????????????????????????????# #?????????????? | | ?????????????????????????????# +?????????????? | | ?????????????????????????????# #?????????????? | | ?????????????????????????????# #?????????????? | | ?????????????????????????????# #?????????????? | | ?????????????????????????????# %#?????????????? | | ?????????????????????????????# ############??? | | ?????????????????????????????# ## #??? | | ?????????????????????????????+ ## #??? | | ?????????????????????????????# ##] #??? | | ?????????????????????????????#% #=! #??? | | ???????????????????????####### ## " #??? | | ??????????????????### ## k # " #??? | | ??????????????????# = #[ #=% !% %#[ " #### | | ??????????????????# @!*ku= !% # = ! " # | | ??????????????????# < !kk%[s= =[|+[%[!] " # " | | ??????????????????# u=s =%[=#* = " # " | | ??????????????????# #=% %!#% | " #* " | | ??????????????????## R###### ! %#=! " # | | ???????????????????# ?????### ### " # " | | ???????????????????# k????????# ### # " | | ???????????????????# ????????# ### # " | | ???????????????????# ?????????# " + # | | ??????????????????? ??????????# "%################ | | ??????????????????! ?????########"#??????????????? | | ?????????????????? ??????# # ################ | | ????????????????? ???????# """ + % | | ?????????????????????????# """ # ################ | | ?????????????????????????# """ # #??????????????? | | ?????????????????????????# # #??????????????? | | ?????????????????????????######## #??????????????? | | ??????????????????????????????###+##########?????? | | ??????????????????????????????# % #?????? | | ??????????????????????????????# =#?????? | | ??????????????????????????????# #?????? | | ??????????????????????????????# #?????? | | ??????????????????????????????# """ """ #?????? | | ??????????????????????????????# """ """ ####### | | ??????????????????????????????# """ """ ! # | +----------------------------------------------------+ Best States ------------- Heat Dissipation 65 Coolant Potential 50 Energy Generation 26 Energy Capacity 265 Matter Stores 300 Matter Capacity 300 Sight Range 16 Terrain Scan Density 10 Armor Coverage 600 Resistance: KI 20 Power Shielding 66 Propulsion Shielding 66 Evasion (%) 40 Targeting Accuracy 8 Recoil Reduction 4 Offensive Hacking 10 Item Schematics ----------------- None Robot Schematics ------------------ None Fabricated ------------ Nothing Alien Tech Used ----------------- None Achievements -------------- Exterminator More Dakka Please Challenges ------------ None Game ------ Seed TargetSpliceRedirector Manual? 0 Play Time 01:12:00 Cumulative 20.4 hours Start 2024.04.10 @ 13:39:15 End 2024.04.10 @ 19:14:02 Sessions 3 Manual Loads 0 Difficulty Rogue Special Mode None Game No. 23 Rogue 20 Adventurer 3 Explorer 0 Win Type - Total 0 Types 0/0/0/0/0/0/0/0/0 Lore% 22 Gallery% 24 Achievement% 21 Wizard Run 0 Options --------- Layout 1 ASCII 0 Keyboard 0 Movement Mouse Keybinds 0 Fullscreen 1 Font 24/Smallcaps Map View 50x35 Zoom Use 0% Tactical HUD 0 Map Filters NONE Filters NONE Steam 1 RUN: 1489ffed-2c30-4d27-937b-4a87fb3fb609